{"text_format":"1","workbook":"xlsx","n_sheets":3,"sheets":["Formato","Instructivo de Diligenciamiento","Listas"],"not_rendered":{"charts":0,"images":3,"macros":1,"external_links":0,"defined_names":3,"comments":1,"pivot_tables":0},"unopened":[],"bounds":{"document_bytes":16777216,"sheet_cells":100000,"rows_first":2000,"rows_last":500,"rows_between":2000,"halvings":0,"cell_chars":16384,"cell_head_chars":4096},"cells_cut":0,"cells_raw":0,"read":"whole","date_system":"1900"}

{"sheet":"Formato","index":0,"n_rows":229,"n_cols":17,"rows_kept":229,"cut":false,"hidden":false,"merged":[[4,4,5,5],[27,6,27,8],[27,9,27,10],[27,11,27,13],[15,3,15,7],[27,4,27,5],[1,1,1,13],[7,1,7,2],[11,1,11,2],[23,9,23,13],[25,1,25,2],[25,4,25,5],[25,6,25,8],[25,9,25,10],[25,11,25,13],[11,3,11,9],[9,10,9,11],[9,12,9,13],[2,1,2,13],[4,1,5,3],[4,10,5,11],[4,7,5,9],[29,9,29,10],[21,1,21,13],[7,3,7,9],[9,1,9,2],[9,3,9,7],[7,12,7,13],[23,1,23,2],[23,4,23,8],[19,1,19,13],[29,1,29,2],[29,11,29,13],[17,1,17,13],[29,4,29,8],[15,1,15,2],[13,1,13,13],[27,1,27,2],[38,2,38,3],[38,16,38,17],[38,10,38,11],[37,10,37,17],[31,6,31,8],[31,11,31,13],[37,1,37,9],[31,1,31,2],[31,4,31,5],[31,9,31,10],[35,0,35,17],[37,0,38,0],[38,8,38,9],[39,16,39,17],[212,6,212,7],[212,8,212,9],[39,10,39,11],[39,2,39,3],[39,8,39,9],[40,2,40,3],[40,8,40,9],[40,10,40,11],[40,16,40,17],[41,2,41,3],[41,8,41,9],[41,10,41,11],[41,16,41,17],[42,2,42,3],[42,8,42,9],[227,10,228,14],[227,1,227,3],[227,6,227,8],[228,1,228,3],[228,4,228,5],[228,6,228,8],[215,0,215,17],[219,1,219,4],[219,5,219,7],[219,8,219,11],[220,1,220,4],[220,5,220,7],[220,8,220,11],[217,1,217,4],[217,5,217,7],[217,8,217,11],[218,1,218,4],[218,5,218,7],[218,8,218,11],[222,1,222,3],[222,11,224,13],[225,11,225,13],[225,1,225,3],[225,6,225,8],[44,2,44,3],[44,8,44,9],[44,10,44,11],[44,16,44,17],[45,2,45,3],[45,8,45,9],[45,10,45,11],[45,16,45,17],[42,10,42,11],[42,16,42,17],[43,2,43,3],[43,8,43,9],[43,10,43,11],[43,16,43,17],[48,2,48,3],[48,8,48,9],[48,10,48,11],[48,16,48,17],[49,2,49,3],[49,8,49,9],[49,10,49,11],[49,16,49,17],[46,2,46,3],[46,8,46,9],[46,10,46,11],[46,16,46,17],[47,2,47,3],[47,8,47,9],[47,10,47,11],[47,16,47,17],[52,2,52,3],[52,8,52,9],[52,10,52,11],[52,16,52,17],[53,2,53,3],[53,8,53,9],[53,10,53,11],[53,16,53,17],[50,2,50,3],[50,8,50,9],[50,10,50,11],[50,16,50,17],[51,2,51,3],[51,8,51,9],[51,10,51,11],[51,16,51,17],[56,2,56,3],[56,8,56,9],[56,10,56,11],[56,16,56,17],[57,2,57,3],[57,8,57,9],[57,10,57,11],[57,16,57,17],[54,2,54,3],[54,8,54,9],[54,10,54,11],[54,16,54,17],[55,2,55,3],[55,8,55,9],[55,10,55,11],[55,16,55,17],[60,2,60,3],[60,8,60,9],[60,10,60,11],[60,16,60,17],[61,2,61,3],[61,8,61,9],[61,10,61,11],[61,16,61,17],[58,2,58,3],[58,8,58,9],[58,10,58,11],[58,16,58,17],[59,2,59,3],[59,8,59,9],[59,10,59,11],[59,16,59,17],[64,2,64,3],[64,8,64,9],[64,10,64,11],[64,16,64,17],[65,2,65,3],[65,8,65,9],[65,10,65,11],[65,16,65,17],[62,2,62,3],[62,8,62,9],[62,10,62,11],[62,16,62,17],[63,2,63,3],[63,8,63,9],[63,10,63,11],[63,16,63,17],[68,2,68,3],[68,8,68,9],[68,10,68,11],[68,16,68,17],[69,2,69,3],[69,8,69,9],[69,10,69,11],[69,16,69,17],[66,2,66,3],[66,8,66,9],[66,10,66,11],[66,16,66,17],[67,2,67,3],[67,8,67,9],[67,10,67,11],[67,16,67,17],[72,2,72,3],[72,8,72,9],[72,10,72,11],[72,16,72,17],[73,2,73,3],[73,8,73,9],[73,10,73,11],[73,16,73,17],[70,2,70,3],[70,8,70,9],[70,10,70,11],[70,16,70,17],[71,2,71,3],[71,8,71,9],[71,10,71,11],[71,16,71,17],[76,2,76,3],[76,8,76,9],[76,10,76,11],[76,16,76,17],[77,2,77,3],[77,8,77,9],[77,10,77,11],[77,16,77,17],[74,2,74,3],[74,8,74,9],[74,10,74,11],[74,16,74,17],[75,2,75,3],[75,8,75,9],[75,10,75,11],[75,16,75,17],[80,2,80,3],[80,8,80,9],[80,10,80,11],[80,16,80,17],[81,2,81,3],[81,8,81,9],[81,10,81,11],[81,16,81,17],[78,2,78,3],[78,8,78,9],[78,10,78,11],[78,16,78,17],[79,2,79,3],[79,8,79,9],[79,10,79,11],[79,16,79,17],[84,2,84,3],[84,8,84,9],[84,10,84,11],[84,16,84,17],[85,2,85,3],[85,8,85,9],[85,10,85,11],[85,16,85,17],[82,2,82,3],[82,8,82,9],[82,10,82,11],[82,16,82,17],[83,2,83,3],[83,8,83,9],[83,10,83,11],[83,16,83,17],[88,2,88,3],[88,8,88,9],[88,10,88,11],[88,16,88,17],[89,2,89,3],[89,8,89,9],[89,10,89,11],[89,16,89,17],[86,2,86,3],[86,8,86,9],[86,10,86,11],[86,16,86,17],[87,2,87,3],[87,8,87,9],[87,10,87,11],[87,16,87,17],[92,2,92,3],[92,8,92,9],[92,10,92,11],[92,16,92,17],[90,2,90,3],[90,8,90,9],[90,10,90,11],[90,16,90,17],[91,2,91,3],[91,8,91,9],[91,10,91,11],[91,16,91,17],[100,2,100,3],[100,8,100,9],[100,10,100,11],[100,16,100,17],[98,2,98,3],[98,8,98,9],[98,10,98,11],[98,16,98,17],[96,2,96,3],[96,8,96,9],[96,10,96,11],[96,16,96,17],[108,2,108,3],[108,8,108,9],[108,10,108,11],[108,16,108,17],[106,2,106,3],[106,8,106,9],[106,10,106,11],[106,16,106,17],[104,2,104,3],[104,8,104,9],[104,10,104,11],[104,16,104,17],[116,2,116,3],[116,8,116,9],[116,10,116,11],[116,16,116,17],[114,2,114,3],[114,8,114,9],[114,10,114,11],[114,16,114,17],[112,2,112,3],[112,8,112,9],[112,10,112,11],[112,16,112,17],[124,2,124,3],[124,8,124,9],[124,10,124,11],[124,16,124,17],[122,2,122,3],[122,8,122,9],[122,10,122,11],[122,16,122,17],[120,2,120,3],[120,8,120,9],[120,10,120,11],[120,16,120,17],[132,2,132,3],[132,8,132,9],[132,10,132,11],[132,16,132,17],[130,2,130,3],[130,8,130,9],[130,10,130,11],[130,16,130,17],[128,2,128,3],[128,8,128,9],[128,10,128,11],[128,16,128,17],[140,2,140,3],[140,8,140,9],[140,10,140,11],[140,16,140,17],[138,2,138,3],[138,8,138,9],[138,10,138,11],[138,16,138,17],[136,2,136,3],[136,8,136,9],[136,10,136,11],[136,16,136,17],[148,2,148,3],[148,8,148,9],[148,10,148,11],[148,16,148,17],[146,2,146,3],[146,8,146,9],[146,10,146,11],[146,16,146,17],[144,2,144,3],[144,8,144,9],[144,10,144,11],[144,16,144,17],[156,2,156,3],[156,8,156,9],[156,10,156,11],[156,16,156,17],[154,2,154,3],[154,8,154,9],[154,10,154,11],[154,16,154,17],[152,2,152,3],[152,8,152,9],[152,10,152,11],[152,16,152,17],[164,2,164,3],[164,8,164,9],[164,10,164,11],[164,16,164,17],[162,2,162,3],[162,8,162,9],[162,10,162,11],[162,16,162,17],[160,2,160,3],[160,8,160,9],[160,10,160,11],[160,16,160,17],[172,2,172,3],[172,8,172,9],[172,10,172,11],[172,16,172,17],[170,2,170,3],[170,8,170,9],[170,10,170,11],[170,16,170,17],[168,2,168,3],[168,8,168,9],[168,10,168,11],[168,16,168,17],[180,2,180,3],[180,8,180,9],[180,10,180,11],[180,16,180,17],[178,2,178,3],[178,8,178,9],[178,10,178,11],[178,16,178,17],[176,2,176,3],[176,8,176,9],[176,10,176,11],[176,16,176,17],[188,2,188,3],[188,8,188,9],[188,10,188,11],[188,16,188,17],[186,2,186,3],[186,8,186,9],[186,10,186,11],[186,16,186,17],[184,2,184,3],[184,8,184,9],[184,10,184,11],[184,16,184,17],[196,2,196,3],[196,8,196,9],[196,10,196,11],[196,16,196,17],[194,2,194,3],[194,8,194,9],[194,10,194,11],[194,16,194,17],[192,2,192,3],[192,8,192,9],[192,10,192,11],[192,16,192,17],[204,2,204,3],[204,8,204,9],[204,10,204,11],[204,16,204,17],[202,2,202,3],[202,8,202,9],[202,10,202,11],[202,16,202,17],[200,2,200,3],[200,8,200,9],[200,10,200,11],[200,16,200,17],[210,2,210,3],[210,8,210,9],[210,10,210,11],[210,16,210,17],[208,2,208,3],[208,8,208,9],[208,10,208,11],[208,16,208,17],[206,2,206,3],[206,8,206,9],[206,10,206,11],[206,16,206,17],[97,2,97,3],[97,8,97,9],[97,10,97,11],[97,16,97,17],[99,2,99,3],[99,8,99,9],[99,10,99,11],[99,16,99,17],[93,2,93,3],[93,8,93,9],[93,10,93,11],[93,16,93,17],[95,2,95,3],[95,8,95,9],[95,10,95,11],[95,16,95,17],[94,2,94,3],[94,8,94,9],[94,10,94,11],[94,16,94,17],[105,2,105,3],[105,8,105,9],[105,10,105,11],[105,16,105,17],[107,2,107,3],[107,8,107,9],[107,10,107,11],[107,16,107,17],[101,2,101,3],[101,8,101,9],[101,10,101,11],[101,16,101,17],[103,2,103,3],[103,8,103,9],[103,10,103,11],[103,16,103,17],[102,2,102,3],[102,8,102,9],[102,10,102,11],[102,16,102,17],[113,2,113,3],[113,8,113,9],[113,10,113,11],[113,16,113,17],[115,2,115,3],[115,8,115,9],[115,10,115,11],[115,16,115,17],[109,2,109,3],[109,8,109,9],[109,10,109,11],[109,16,109,17],[111,2,111,3],[111,8,111,9],[111,10,111,11],[111,16,111,17],[110,2,110,3],[110,8,110,9],[110,10,110,11],[110,16,110,17],[121,2,121,3],[121,8,121,9],[121,10,121,11],[121,16,121,17],[123,2,123,3],[123,8,123,9],[123,10,123,11],[123,16,123,17],[117,2,117,3],[117,8,117,9],[117,10,117,11],[117,16,117,17],[119,2,119,3],[119,8,119,9],[119,10,119,11],[119,16,119,17],[118,2,118,3],[118,8,118,9],[118,10,118,11],[118,16,118,17],[129,2,129,3],[129,8,129,9],[129,10,129,11],[129,16,129,17],[131,2,131,3],[131,8,131,9],[131,10,131,11],[131,16,131,17],[125,2,125,3],[125,8,125,9],[125,10,125,11],[125,16,125,17],[127,2,127,3],[127,8,127,9],[127,10,127,11],[127,16,127,17],[126,2,126,3],[126,8,126,9],[126,10,126,11],[126,16,126,17],[137,2,137,3],[137,8,137,9],[137,10,137,11],[137,16,137,17],[139,2,139,3],[139,8,139,9],[139,10,139,11],[139,16,139,17],[133,2,133,3],[133,8,133,9],[133,10,133,11],[133,16,133,17],[135,2,135,3],[135,8,135,9],[135,10,135,11],[135,16,135,17],[134,2,134,3],[134,8,134,9],[134,10,134,11],[134,16,134,17],[145,2,145,3],[145,8,145,9],[145,10,145,11],[145,16,145,17],[147,2,147,3],[147,8,147,9],[147,10,147,11],[147,16,147,17],[141,2,141,3],[141,8,141,9],[141,10,141,11],[141,16,141,17],[143,2,143,3],[143,8,143,9],[143,10,143,11],[143,16,143,17],[142,2,142,3],[142,8,142,9],[142,10,142,11],[142,16,142,17],[153,2,153,3],[153,8,153,9],[153,10,153,11],[153,16,153,17],[155,2,155,3],[155,8,155,9],[155,10,155,11],[155,16,155,17],[149,2,149,3],[149,8,149,9],[149,10,149,11],[149,16,149,17],[151,2,151,3],[151,8,151,9],[151,10,151,11],[151,16,151,17],[150,2,150,3],[150,8,150,9],[150,10,150,11],[150,16,150,17],[161,2,161,3],[161,8,161,9],[161,10,161,11],[161,16,161,17],[163,2,163,3],[163,8,163,9],[163,10,163,11],[163,16,163,17],[157,2,157,3],[157,8,157,9],[157,10,157,11],[157,16,157,17],[159,2,159,3],[159,8,159,9],[159,10,159,11],[159,16,159,17],[158,2,158,3],[158,8,158,9],[158,10,158,11],[158,16,158,17],[169,2,169,3],[169,8,169,9],[169,10,169,11],[169,16,169,17],[171,2,171,3],[171,8,171,9],[171,10,171,11],[171,16,171,17],[165,2,165,3],[165,8,165,9],[165,10,165,11],[165,16,165,17],[167,2,167,3],[167,8,167,9],[167,10,167,11],[167,16,167,17],[166,2,166,3],[166,8,166,9],[166,10,166,11],[166,16,166,17],[177,2,177,3],[177,8,177,9],[177,10,177,11],[177,16,177,17],[179,2,179,3],[179,8,179,9],[179,10,179,11],[179,16,179,17],[173,2,173,3],[173,8,173,9],[173,10,173,11],[173,16,173,17],[175,2,175,3],[175,8,175,9],[175,10,175,11],[175,16,175,17],[174,2,174,3],[174,8,174,9],[174,10,174,11],[174,16,174,17],[185,2,185,3],[185,8,185,9],[185,10,185,11],[185,16,185,17],[187,2,187,3],[187,8,187,9],[187,10,187,11],[187,16,187,17],[181,2,181,3],[181,8,181,9],[181,10,181,11],[181,16,181,17],[183,2,183,3],[183,8,183,9],[183,10,183,11],[183,16,183,17],[182,2,182,3],[182,8,182,9],[182,10,182,11],[182,16,182,17],[193,2,193,3],[193,8,193,9],[193,10,193,11],[193,16,193,17],[195,2,195,3],[195,8,195,9],[195,10,195,11],[195,16,195,17],[189,2,189,3],[189,8,189,9],[189,10,189,11],[189,16,189,17],[191,2,191,3],[191,8,191,9],[191,10,191,11],[191,16,191,17],[190,2,190,3],[190,8,190,9],[190,10,190,11],[190,16,190,17],[201,2,201,3],[201,8,201,9],[201,10,201,11],[201,16,201,17],[203,2,203,3],[203,8,203,9],[203,10,203,11],[203,16,203,17],[197,2,197,3],[197,8,197,9],[197,10,197,11],[197,16,197,17],[199,2,199,3],[199,8,199,9],[199,10,199,11],[199,16,199,17],[198,2,198,3],[198,8,198,9],[198,10,198,11],[198,16,198,17],[209,2,209,3],[209,8,209,9],[209,10,209,11],[209,16,209,17],[205,2,205,3],[205,8,205,9],[205,10,205,11],[205,16,205,17],[207,2,207,3],[207,8,207,9],[207,10,207,11],[207,16,207,17]]}
[]
[null,"FORMATO PARA MODIFICACIÓN DE ÓRDENES DE COMPRA"]
[null,"Tienda Virtual del Estado Colombiano"]
[]
[null,"Número de Orden de Compra a modificar:",null,null,12029,null,null,"Número de modificación de la Orden de Compra:",null,null,1]
[]
[]
[null,"Entidad Compradora:",null,"MINISTERIO DE DEFENSA NACIONAL-EJERCITO NACIONAL-APOYO LOGISTICO COMANDO EJERCITO",null,null,null,null,null,null,null,"NIT:","800130632-4"]
[]
[null,"Nombre del solicitante:",null,null,null,null,null,null,null,null,"Teléfono de contacto:",null,"4261479 EXT 38100"]
[]
[null,"Proveedor :",null,"Ofibest SAS"]
[]
[null,"Sección 1: Tipo de acción"]
[]
[null,"Tipo",null,"Modificación de la Orden de Compra"]
[]
[null,"Sección 2: Justificación de la modificación o de las acciones a realizar"]
[]
[null,"SE SOLICITAN MAYORES CANTIDADES PARA PODER SATISFACER LA NECESIDAD DE LA ENTIDAD Y PODER CUBRIR LO PLANTEADO PARA LAS DISTINTAS DIRECCIONES Y JEFATURAS DEL COMANDO DEL EJERCITO EN EL MES DE ENERO Y PODER TENER STOCK DE LOS ELEMENTOS, PARA NO OCASIONAR NINGUN CONTRATIEMPO EN LA NORMAL ACTIVIDAD ADMINISTRATIVA DE LA ENTIDAD"]
[]
[null,"Sección 3:  Modificación información general"]
[]
[null,"Nombre del campo",null,"¿Requiere modificación Si/No?","Datos actuales",null,null,null,null,"Nuevos datos"]
[]
[null,"Actualizar supervisor",null,"NO","Nombre del supervisor actual",null,0,null,null,"Nombre nuevo supervisor"]
[]
[null,"Dirección y/o teléfono Supervisor",null,"NO","Teléfono actual supervisor",null,0,null,null,"Teléfono nuevo supervisor"]
[]
[null,"Fecha de vencimiento",null,"NO","   La fecha vencimiento actual se tomará de la TVEC al momento del cambio",null,null,null,null,"Nueva fecha de vencimiento"]
[]
[null,"Dirección y/o teléfono Entidad",null,"NO","Dirección / teléfono actual Entidad",null,0,null,null,"Nueva dirección / teléfono Entidad"]
[]
[]
[]
["Sección 4: Modificación de artículos y servicios"]
[]
["Tipo de modificación","Información actual",null,null,null,null,null,null,null,null,"Nueva información"]
[null,"Número de la línea según O.C.","Nombre del artículo",null,"Cantidad","Unidad de medida","Precio unitario","Total","Información presupuestal",null,"Nombre del artículo",null,"Cantidad","Unidad de medida","Precio unitario","Total","Información presupuestal"]
["Modificación de artículo o servicio",1,"Almohadilla Dactilar",null,18,"Unidad",914.5,{"$f":"ROUND(E40*G40, 2)","v":16461},null,null,{"$f":"C40","v":"Almohadilla Dactilar"},null,85,"Unidad",914.5,{"$f":"ROUND(M40*O40, 2)","v":77732.5}]
["Modificación de artículo o servicio",2,"Almohadilla Dactilar Recargable",null,12,"Unidad",12749.1,152989.20000000001,null,null,"Almohadilla Dactilar Recargable",null,22,"Unidad",12749.1,280480.2]
["Modificación de artículo o servicio",3,"Almohadilla Para Sello Recargable",null,12,"Unidad",2663.2,31958.400000000001,null,null,"Almohadilla Para Sello Recargable",null,22,"Unidad",2663.2,58590.400000000001]
["Modificación de artículo o servicio",4,"Archivador De Fuelle En Polipropileno",null,24,"Unidad",6183.2,148396.79999999999,null,null,"Archivador De Fuelle En Polipropileno",null,54,"Unidad",6183.2,333892.8]
["Modificación de artículo o servicio",5,"Archivador De Fuelle En Yute",null,18,"Unidad",5727.2,103089.60000000001,null,null,"Archivador De Fuelle En Yute",null,23,"Unidad",5727.2,131725.6]
["Modificación de artículo o servicio",6,"Bandas Elásticas Ref. 22 X 25G",null,300,"Caja",159.1,47730,null,null,"Bandas Elásticas Ref. 22 X 25G",null,350,"Caja",159.1,55685]
["Modificación de artículo o servicio",7,"Bandas Elásticas Ref. 22 X Kilo ",null,300,"Bolsa",6845.6,2053680,null,null,"Bandas Elásticas Ref. 22 X Kilo ",null,310,"Bolsa",6845.6,2122136]
["Modificación de artículo o servicio",8,"Banderitas-Mini-Banderitas- Señales Autoadhesivas",null,120,"Unidad",1056.5,126780,null,null,"Banderitas-Mini-Banderitas- Señales Autoadhesivas",null,170,"Unidad",1056.5,179605]
["Modificación de artículo o servicio",9,"Bisturí 18Mm Metálico",null,120,"Unidad",1229,147480,null,null,"Bisturí 18Mm Metálico",null,140,"Unidad",1229,172060]
["Modificación de artículo o servicio",10,"Bisturí 18Mm Plástico",null,120,"Unidad",478,57360,null,null,"Bisturí 18Mm Plástico",null,140,"Unidad",478,66920]
["Modificación de artículo o servicio",11,"Block Amarillo Cuadriculado ",null,240,"Unidad",1367.3,328152,null,null,"Block Amarillo Cuadriculado ",null,289,"Unidad",1367.3,395149.7]
["Modificación de artículo o servicio",12,"Block Amarillo Rayado ",null,240,"Unidad",1367.3,328152,null,null,"Block Amarillo Rayado ",null,289,"Unidad",1367.3,395149.7]
["Modificación de artículo o servicio",13,"Block Blanco Cuadriculado",null,240,"Unidad",852.6,204624,null,null,"Block Blanco Cuadriculado",null,290,"Unidad",852.6,247254]
["Modificación de artículo o servicio",14,"Block Blanco Rayado",null,240,"Unidad",852.6,204624,null,null,"Block Blanco Rayado",null,290,"Unidad",852.6,247254]
["Modificación de artículo o servicio",15,"Bolígrafo Azul ",null,300,"Unidad",164.7,49410,null,null,"Bolígrafo Azul ",null,330,"Unidad",164.7,54351]
["Modificación de artículo o servicio",16,"Bolígrafo Negro",null,300,"Unidad",164.7,49410,null,null,"Bolígrafo Negro",null,350,"Unidad",164.7,57645]
["Modificación de artículo o servicio",17,"Bolígrafo Rojo",null,300,"Unidad",164.7,49410,null,null,"Bolígrafo Rojo",null,310,"Unidad",164.7,51057]
["Modificación de artículo o servicio",18,"Borrador De Nata",null,360,"Unidad",150.19999999999999,54072,null,null,"Borrador De Nata",null,410,"Unidad",150.19999999999999,61582]
["Modificación de artículo o servicio",19,"Borrador Para Tablero",null,30,"Unidad",956,28680,null,null,"Borrador Para Tablero",null,40,"Unidad",956,38240]
["Modificación de artículo o servicio",20,"Borrador Para Tinta Con Escobilla",null,90,"Unidad",2859.95,257395.5,null,null,"Borrador Para Tinta Con Escobilla",null,100,"Unidad",2859.95,285995]
["Modificación de artículo o servicio",21,"Caballete O Trípode Para Tablero Acrílico ",null,60,"Unidad",45016,2700960,null,null,"Caballete O Trípode Para Tablero Acrílico ",null,65,"Unidad",45016,2926040]
["Modificación de artículo o servicio",22,"Cajas Para Archivo Central Referencia X-200 Membreteada. La Entidad Compradora Debe Solicitar Mínimo 500 Unidades. ",null,2500,"Unidad",1479.71,3699275,null,null,"Cajas Para Archivo Central Referencia X-200 Membreteada. La Entidad Compradora Debe Solicitar Mínimo 500 Unidades. ",null,3000,"Unidad",1479.71,4439130]
["Modificación de artículo o servicio",23,"Caja Para Archivo Histórico Referencia X-100 Membreteada. La Entidad Compradora Debe Solicitar Mínimo 500 Unidades. ",null,4000,"Unidad",1132.3,4529200,null,null,"Caja Para Archivo Histórico Referencia X-100 Membreteada. La Entidad Compradora Debe Solicitar Mínimo 500 Unidades. ",null,4500,"Unidad",1132.3,5095350]
["Modificación de artículo o servicio",24,"Caja Para Archivo Referencia X-300 Membreteada. La Entidad Compradora Debe Solicitar Mínimo 500 Unidades. ",null,3000,"Unidad",2585.4,7756200,null,null,"Caja Para Archivo Referencia X-300 Membreteada. La Entidad Compradora Debe Solicitar Mínimo 500 Unidades. ",null,3500,"Unidad",2585.4,9048900]
["Modificación de artículo o servicio",25,"Caja Para Archivo Central Referencia X-200",null,2000,"Unidad",1099.8,2199600,null,null,"Caja Para Archivo Central Referencia X-200",null,2500,"Unidad",1099.8,2749500]
["Modificación de artículo o servicio",26,"Caja Para Archivo Histórico Referencia X-100",null,4000,"Unidad",1199.9000000000001,4799600,null,null,"Caja Para Archivo Histórico Referencia X-100",null,4500,"Unidad",1199.9000000000001,5399550]
["Modificación de artículo o servicio",27,"Caja Para Archivo Referencia X-300",null,2000,"Unidad",2575.5,5151000,null,null,"Caja Para Archivo Referencia X-300",null,2500,"Unidad",2575.5,6438750]
["Modificación de artículo o servicio",28,"Calculadora De Escritorio Con Impresora",null,12,"Unidad",160121.20000000001,1921454.4,null,null,"Calculadora De Escritorio Con Impresora",null,24,"Unidad",160121.20000000001,3842908.8]
["Modificación de artículo o servicio",29,"Calculadora Escritorio 12 Dígitos",null,30,"Unidad",7099,212970,null,null,"Calculadora Escritorio 12 Dígitos",null,40,"Unidad",7099,283960]
["Modificación de artículo o servicio",30,"Carpeta Presentación Oficio Plastificado Mate",null,1200,"20 unidades",4030,4836000,null,null,"Carpeta Presentación Oficio Plastificado Mate",null,1220,"20 unidades",4030,4916600]
["Modificación de artículo o servicio",31,"Carpeta Tipo 4 Aletas En Cartulina Desacidificada",null,8500,"Unidad",900,7650000,null,null,"Carpeta Tipo 4 Aletas En Cartulina Desacidificada",null,9000,"Unidad",900,8100000]
["Modificación de artículo o servicio",32,"Carpeta Tipo 4 Aletas En Cartulina Blanca Tipo Propalcote",null,6500,"Unidad",603.85,3925025,null,null,"Carpeta Tipo 4 Aletas En Cartulina Blanca Tipo Propalcote",null,7000,"Unidad",603.85,4226950]
["Modificación de artículo o servicio",33,"Carpeta Tipo Catálogo 0.5 Pulg",null,30,"Unidad",2150.5,{"$f":"ROUND(E72*G72, 2)","v":64515},null,null,{"$f":"C72","v":"Carpeta Tipo Catálogo 0.5 Pulg"},null,40,"Unidad",2150.5,{"$f":"ROUND(M72*O72, 2)","v":86020}]
["Modificación de artículo o servicio",34,"Carpeta Tipo Catálogo 1 Pulg",null,60,"Unidad",2703,162180,null,null,"Carpeta Tipo Catálogo 1 Pulg",null,120,"Unidad",2703,324360]
["Modificación de artículo o servicio",35,"Carpeta Tipo Catálogo 2 Pulg",null,120,"Unidad",4197.5,503700,null,null,"Carpeta Tipo Catálogo 2 Pulg",null,240,"Unidad",4197.5,1007400]
["Modificación de artículo o servicio",36,"Carpeta Tipo Catálogo 3 Pulg",null,12,"Unidad",4914.3999999999996,58972.800000000003,null,null,"Carpeta Tipo Catálogo 3 Pulg",null,24,"Unidad",4914.3999999999996,117945.60000000001]
["Modificación de artículo o servicio",37,"Carpeta Tipo Catálogo 4 Pulg",null,18,"Unidad",5389.8,97016.4,null,null,"Carpeta Tipo Catálogo 4 Pulg",null,36,"Unidad",5389.8,194032.8]
["Modificación de artículo o servicio",38,"Cartulina Oficio Surtido",null,120,"Paquete X 100",2115.3000000000002,253836,null,null,"Cartulina Oficio Surtido",null,130,"Paquete X 100",2115.3000000000002,274989]
["Modificación de artículo o servicio",39,"Cd-R",null,120,"100 Unidades",30487.8,3658536,null,null,"Cd-R",null,130,"100 Unidades",30487.8,3963414]
["Modificación de artículo o servicio",40,"Cd-Rw",null,180,"25 Unidades",23262.7,4187286,null,null,"Cd-Rw",null,190,"25 Unidades",23262.7,4419913]
["Modificación de artículo o servicio",41,"Cera Para Contar - Cera Dactilar Cuenta Fácil ",null,240,"Unidad",676.4,162336,null,null,"Cera Para Contar - Cera Dactilar Cuenta Fácil ",null,290,"Unidad",676.4,196156]
["Modificación de artículo o servicio",42,"Chinches X 50",null,180,"Caja X 50",497,89460,null,null,"Chinches X 50",null,1182,"Caja X 50",497,587454]
["Modificación de artículo o servicio",43,"Cinta Adhesiva De Empaque En Rollo",null,240,"Unidad - Rollo",1693.7,406488,null,null,"Cinta Adhesiva De Empaque En Rollo",null,276,"Unidad - Rollo",1693.7,467461.2]
["Modificación de artículo o servicio",44,"Cinta Adhesiva Mágica",null,120,"Unidad - Rollo",3170,380400,null,null,"Cinta Adhesiva Mágica",null,156,"Unidad - Rollo",3170,494520]
["Modificación de artículo o servicio",45,"Cinta Adhesiva Para Enmascarar 12Mm",null,180,"Unidad - Rollo",952.3,171414,null,null,"Cinta Adhesiva Para Enmascarar 12Mm",null,216,"Unidad - Rollo",952.3,205696.8]
["Modificación de artículo o servicio",46,"Cinta Adhesiva Para Enmascarar 48Mm",null,120,"Unidad - Rollo",3520.1,422412,null,null,"Cinta Adhesiva Para Enmascarar 48Mm",null,156,"Unidad - Rollo",3520.1,549135.6]
["Modificación de artículo o servicio",47,"Cinta Adhesiva Transparente",null,60,"Unidad - Rollo",375.1,22506,null,null,"Cinta Adhesiva Transparente",null,72,"Unidad - Rollo",375.1,27007.200000000001]
["Modificación de artículo o servicio",48,"Clip Estándar Pequeño X 100",null,180,"Caja x 100",160.9,28962,null,null,"Clip Estándar Pequeño X 100",null,190,"Caja x 100",160.9,30571]
["Modificación de artículo o servicio",49,"Clip Estándar Pequeño Plastificado X 100",null,30,"Caja x 100",201.1,6033,null,null,"Clip Estándar Pequeño Plastificado X 100",null,60,"Caja x 100",201.1,12066]
["Modificación de artículo o servicio",50,"Clip Jumbo X 100",null,60,"Caja x 100",788.9,47334,null,null,"Clip Jumbo X 100",null,71,"Caja x 100",788.9,56011.9]
["Modificación de artículo o servicio",51,"Corrector Liquido En Frasco",null,180,"Unidad",882.5,158850,null,null,"Corrector Liquido En Frasco",null,204,"Unidad",882.5,180030]
["Modificación de artículo o servicio",52,"Corrector Líquido En Lápiz",null,120,"Unidad",838,100560,null,null,"Corrector Líquido En Lápiz",null,144,"Unidad",838,120672]
["Modificación de artículo o servicio",53,"Cosedora De Oficina 20 Hojas",null,30,"Unidad",7054,211620,null,null,"Cosedora De Oficina 20 Hojas",null,40,"Unidad",7054,282160]
["Modificación de artículo o servicio",54,"Cosedora De Oficina 30 Hojas",null,30,"Unidad",14353.6,430608,null,null,"Cosedora De Oficina 30 Hojas",null,40,"Unidad",14353.6,574144]
["Modificación de artículo o servicio",55,"Cosedora Eléctrica",null,36,"Unidad",150999.4,5435978.4000000004,null,null,"Cosedora Eléctrica",null,38,"Unidad",150999.4,5737977.2000000002]
["Modificación de artículo o servicio",56,"Cosedora Industrial",null,30,"Unidad",63817.15,1914514.5,null,null,"Cosedora Industrial",null,32,"Unidad",63817.15,2042148.8]
["Modificación de artículo o servicio",57,"Cosedora Semindustrial",null,60,"Unidad",45324,2719440,null,null,"Cosedora Semindustrial",null,65,"Unidad",45324,2946060]
["Modificación de artículo o servicio",58,"Fechador De Entintado Manual",null,30,"Unidad",3047,91410,null,null,"Fechador De Entintado Manual",null,40,"Unidad",3047,121880]
["Modificación de artículo o servicio",59,"Ficha Bibliográficas X 100",null,6,"100 Unidades",755.9,4535.3999999999996,null,null,"Ficha Bibliográficas X 100",null,8,"100 Unidades",755.9,6047.2]
["Modificación de artículo o servicio",60,"Folder Celuguia Con Porta Guía Plástica En Posición Horizontal Paquete X 50 Que Cumplan Con Ntc 4436:1999 Y Ntc 5397 Paquete X 50",null,48,"50 Unidades",5947.1,285460.8,null,null,"Folder Celuguia Con Porta Guía Plástica En Posición Horizontal Paquete X 50 Que Cumplan Con Ntc 4436:1999 Y Ntc 5397 Paquete X 50",null,50,"50 Unidades",5947.1,297355]
["Modificación de artículo o servicio",61,"Folder Celuguia Con Porta Guía Plástica En Posición Vertical, Paquete X 50 Que Cumplan Con Ntc 4436:1999 Y Ntc 5397",null,48,"Paquete x 50",5947.1,285460.8,null,null,"Folder Celuguia Con Porta Guía Plástica En Posición Vertical, Paquete X 50 Que Cumplan Con Ntc 4436:1999 Y Ntc 5397",null,50,"Paquete x 50",5947.1,297355]
["Modificación de artículo o servicio",62,"Forma Continua Carta 2 Partes Caja X 1500",null,50,"Caja x 1500",62963.199999999997,3148160,null,null,"Forma Continua Carta 2 Partes Caja X 1500",null,52,"Caja x 1500",62963.199999999997,3274086.3999999999]
["Modificación de artículo o servicio",63,"Forma Continua Carta 3 Partes Caja X 1000",null,200,"Caja x 1000",44430.96,8886192,null,null,"Forma Continua Carta 3 Partes Caja X 1000",null,210,"Caja x 1000",44430.96,9330501.5999999996]
["Modificación de artículo o servicio",64,"Forma Continua Oficio 1 Parte, Caja X 3000",null,250,"Caja x 3000",41560.480000000003,10390120,null,null,"Forma Continua Oficio 1 Parte, Caja X 3000",null,260,"Caja x 3000",41560.480000000003,10805724.800000001]
["Modificación de artículo o servicio",65,"Funda Protectora De Plástico Tamaño Carta X 100 Unidades",null,120,"100 Unidades",7601,{"$f":"ROUND(E104*G104, 2)","v":912120},null,null,{"$f":"C104","v":"Funda Protectora De Plástico Tamaño Carta X 100 Unidades"},null,125,"100 Unidades",7601,{"$f":"ROUND(M104*O104, 2)","v":950125}]
["Modificación de artículo o servicio",66,"Funda Protectora De Plástico Tamaño Oficio X 100 Unidades",null,120,"100 Unidades",10223,1226760,null,null,"Funda Protectora De Plástico Tamaño Oficio X 100 Unidades",null,125,"100 Unidades",10223,1277875]
["Modificación de artículo o servicio",67,"Gancho Legajador Plástico X 20",null,1200,"20 Unidades",1017,1220400,null,null,"Gancho Legajador Plástico X 20",null,1210,"20 Unidades",1017,1230570]
["Modificación de artículo o servicio",68,"Grapa No. 26/6 Caja X 5000 ",null,120,"Caja x 5000",934.1,112092,null,null,"Grapa No. 26/6 Caja X 5000 ",null,130,"Caja x 5000",934.1,121433]
["Modificación de artículo o servicio",69,"Guía En Cartulina Carta Paquete X 5",null,240,"Paquete x 5",341,81840,null,null,"Guía En Cartulina Carta Paquete X 5",null,250,"Paquete x 5",341,85250]
["Modificación de artículo o servicio",70,"Guía En Cartulina Oficio Paquete X 5",null,240,"Paquete x 5",410,98400,null,null,"Guía En Cartulina Oficio Paquete X 5",null,250,"Paquete x 5",410,102500]
["Modificación de artículo o servicio",71,"Guillotina Manual Corte De Minimo 12 Hojas",null,12,"Unidad",51037.8,612453.6,null,null,"Guillotina Manual Corte De Minimo 12 Hojas",null,24,"Unidad",51037.8,1224907.2]
["Modificación de artículo o servicio",72,"Lápiz De Chequeo Mina Roja ",null,360,"Unidad",227.3,81828,null,null,"Lápiz De Chequeo Mina Roja ",null,398,"Unidad",227.3,90465.4]
["Modificación de artículo o servicio",73,"Lápiz De Escritura Mina Negra",null,60,"12 unidades",1600.4,96024,null,null,"Lápiz De Escritura Mina Negra",null,80,"12 unidades",1600.4,128032]
["Modificación de artículo o servicio",74,"Legajador Az ",null,360,"Unidad",1996.1,718596,null,null,"Legajador Az ",null,380,"Unidad",1996.1,758518]
["Modificación de artículo o servicio",75,"Libreta De Taquigrafía",null,60,"Unidad",1131.7,67902,null,null,"Libreta De Taquigrafía",null,120,"Unidad",1131.7,135804]
["Modificación de artículo o servicio",76,"Libreta Doble O Rayado/ Cuaderno Rayado",null,180,"Unidad",1091.7,196506,null,null,"Libreta Doble O Rayado/ Cuaderno Rayado",null,253,"Unidad",1091.7,276200.09999999998]
["Modificación de artículo o servicio",77,"Libreta Doble O Cuadriculado",null,60,"Unidad",1091.7,65502,null,null,"Libreta Doble O Cuadriculado",null,120,"Unidad",1091.7,131004]
["Modificación de artículo o servicio",78,"Libretatelemensaje",null,72,"Unidad",7972.5,574020,null,null,"Libretatelemensaje",null,82,"Unidad",7972.5,653745]
["Modificación de artículo o servicio",79,"Libro De Actas 100 Folios",null,120,"Unidad",2530.5,303660,null,null,"Libro De Actas 100 Folios",null,140,"Unidad",2530.5,354270]
["Modificación de artículo o servicio",80,"Libro De Actas 200 Folios",null,120,"Unidad",4228.8999999999996,507468,null,null,"Libro De Actas 200 Folios",null,140,"Unidad",4228.8999999999996,592046]
["Modificación de artículo o servicio",81,"Libro De Actas 300 Folios",null,180,"Unidad",6037.8,1086804,null,null,"Libro De Actas 300 Folios",null,200,"Unidad",6037.8,1207560]
["Modificación de artículo o servicio",82,"Libro De Actas 400 Folios",null,180,"Unidad",7725,1390500,null,null,"Libro De Actas 400 Folios",null,200,"Unidad",7725,1545000]
["Modificación de artículo o servicio",83,"Libro De Actas 600 Folios",null,120,"Unidad",11227.5,1347300,null,null,"Libro De Actas 600 Folios",null,140,"Unidad",11227.5,1571850]
["Modificación de artículo o servicio",84,"Manecilla Doble Clip 2 Pulg Caja X 12",null,30,"Caja x 12",1351.1,40533,null,null,"Manecilla Doble Clip 2 Pulg Caja X 12",null,35,"Caja x 12",1351.1,47288.5]
["Modificación de artículo o servicio",85,"Manecilla Doble Clip 1 Pulg Caja X 12",null,30,"Caja x 12",1176.5,35295,null,null,"Manecilla Doble Clip 1 Pulg Caja X 12",null,35,"Caja x 12",1176.5,41177.5]
["Modificación de artículo o servicio",86,"Manecilla Doble Clip 1/2 Pulg Caja X 12",null,30,"Caja x 12",482,14460,null,null,"Manecilla Doble Clip 1/2 Pulg Caja X 12",null,35,"Caja x 12",482,16870]
["Modificación de artículo o servicio",87,"Marcador Borrable Desechable",null,480,"Unidad",648.4,311232,null,null,"Marcador Borrable Desechable",null,530,"Unidad",648.4,343652]
["Modificación de artículo o servicio",88,"Marcador Borrable Recargable",null,240,"Unidad",1007.2,241728,null,null,"Marcador Borrable Recargable",null,290,"Unidad",1007.2,292088]
["Modificación de artículo o servicio",89,"Marcador Permanente ",null,180,"Unidad",383.5,69030,null,null,"Marcador Permanente ",null,190,"Unidad",383.5,72865]
["Modificación de artículo o servicio",90,"Marcador Permanente Punta Delgada",null,120,"Unidad",675.3,81036,null,null,"Marcador Permanente Punta Delgada",null,130,"Unidad",675.3,87789]
["Modificación de artículo o servicio",91,"Mina Para Portaminas 0,7 Mm",null,240,"Unidad",190.3,45672,null,null,"Mina Para Portaminas 0,7 Mm",null,290,"Unidad",190.3,55187]
["Modificación de artículo o servicio",92,"Notas Autoadhesivas Estándar/ Taco/ Bloque/ Cubo De Minimo 100 Hojas",null,90,"Unidad",1087,97830,null,null,"Notas Autoadhesivas Estándar/ Taco/ Bloque/ Cubo De Minimo 100 Hojas",null,180,"Unidad",1087,195660]
["Modificación de artículo o servicio",93,"Notas Autoadhesivas Pequeñas/ Taco/ Bloque/ Cubo De Minimo 100 Hojas",null,48,"Unidad",514,24672,null,null,"Notas Autoadhesivas Pequeñas/ Taco/ Bloque/ Cubo De Minimo 100 Hojas",null,60,"Unidad",514,30840]
["Modificación de artículo o servicio",94,"Numerador Entintado Manual 6 Dígitos",null,30,"Unidad",2389,71670,null,null,"Numerador Entintado Manual 6 Dígitos",null,40,"Unidad",2389,95560]
["Modificación de artículo o servicio",95,"Numerador Entintado Manual 8 Dígitos",null,30,"Unidad",3140,94200,null,null,"Numerador Entintado Manual 8 Dígitos",null,40,"Unidad",3140,125600]
["Modificación de artículo o servicio",96,"Papel Bond 75G Carta Caja X 10 Resmas",null,270,"10 resmas",73204.56,19765231.199999999,null,null,"Papel Bond 75G Carta Caja X 10 Resmas",null,400,"10 resmas",73204.56,29281824]
["Modificación de artículo o servicio",97,"Papel Bond 75G Oficio Caja X 10 Resmas",null,180,"10 resmas",84363.839999999997,{"$f":"ROUND(E136*G136, 2)","v":15185491.199999999},null,null,{"$f":"C136","v":"Papel Bond 75G Oficio Caja X 10 Resmas"},null,275,"10 resmas",84363.839999999997,{"$f":"ROUND(M136*O136, 2)","v":23200056}]
["Modificación de artículo o servicio",98,"Papel Carbón Para Escritura Carta X 100",null,12,"Unidad",141,1692,null,null,"Papel Carbón Para Escritura Carta X 100",null,27,"Unidad",141,3807]
["Modificación de artículo o servicio",99,"Papel Carbón Para Escritura Oficio X 100",null,12,"Unidad",153,1836,null,null,"Papel Carbón Para Escritura Oficio X 100",null,110,"Unidad",153,16830]
["Modificación de artículo o servicio",100,"Papel Carbón Para Máquina Carta X 100",null,12,"Unidad",91,1092,null,null,"Papel Carbón Para Máquina Carta X 100",null,36,"Unidad",91,3276]
["Modificación de artículo o servicio",101,"Papel Carbón Para Máquina Oficio X 100",null,12,"Unidad",100,1200,null,null,"Papel Carbón Para Máquina Oficio X 100",null,22,"Unidad",100,2200]
["Modificación de artículo o servicio",102,"Papel Contact Colores",null,30,"Rollo X 20 metros",24748.9,742467,null,null,"Papel Contact Colores",null,60,"Rollo X 20 metros",24748.9,1484934]
["Modificación de artículo o servicio",103,"Papel Contact Transparente",null,45,"Rollo X 20 metros",22578.6,1016037,null,null,"Papel Contact Transparente",null,55,"Rollo X 20 metros",22578.6,1241823]
["Modificación de artículo o servicio",104,"Papel Kraft 60G",null,600,"Rollo",23038.04,13822824,null,null,"Papel Kraft 60G",null,650,"Rollo",23038.04,14974726]
["Modificación de artículo o servicio",105,"Papel Kraft 90G",null,1000,"Rollo",29511.45,29511450,null,null,"Papel Kraft 90G",null,1010,"Rollo",29511.45,29806564.5]
["Modificación de artículo o servicio",106,"Papel Para Plotter",null,180,"Rollo",27255.75,4906035,null,null,"Papel Para Plotter",null,190,"Rollo",27255.75,5178592.5]
["Modificación de artículo o servicio",107,"Papel Periódico Pliego",null,30,"10 unidades",904.7,27141,null,null,"Papel Periódico Pliego",null,60,"10 unidades",904.7,54282]
["Modificación de artículo o servicio",108,"Papel Seda",null,15,"25 pliegos",1241.8,18627,null,null,"Papel Seda",null,30,"25 pliegos",1241.8,37254]
["Modificación de artículo o servicio",109,"Pegante En Barra",null,900,"Unidad",726.7,654030,null,null,"Pegante En Barra",null,1000,"Unidad",726.7,726700]
["Modificación de artículo o servicio",110,"Pegante Instantáneo",null,90,"Unidad",1781.55,160339.5,null,null,"Pegante Instantáneo",null,210,"Unidad",1781.55,374125.5]
["Modificación de artículo o servicio",111,"Pegante Líquido 225G",null,120,"Unidad",838,100560,null,null,"Pegante Líquido 225G",null,180,"Unidad",838,150840]
["Modificación de artículo o servicio",112,"Pegante Líquido 4000G",null,60,"Unidad",11555.3,693318,null,null,"Pegante Líquido 4000G",null,111,"Unidad",11555.3,1282638.3]
["Modificación de artículo o servicio",113,"Perforadora Industrial 2 Huecos ",null,51,"Unidad",116678.9,5950623.9000000004,null,null,"Perforadora Industrial 2 Huecos ",null,141,"Unidad",116678.9,16451724.9]
["Modificación de artículo o servicio",114,"Perforadora Para Oficina De 2 Huecos ",null,90,"Unidad",7054,634860,null,null,"Perforadora Para Oficina De 2 Huecos ",null,210,"Unidad",7054,1481340]
["Modificación de artículo o servicio",115,"Perforadora Semindustrial 2 Huecos ",null,120,"Unidad",15111.3,1813356,null,null,"Perforadora Semindustrial 2 Huecos ",null,150,"Unidad",15111.3,2266695]
["Modificación de artículo o servicio",116,"Perforadoras 3 Huecos",null,30,"Unidad",19192,575760,null,null,"Perforadoras 3 Huecos",null,40,"Unidad",19192,767680]
["Modificación de artículo o servicio",117,"Pilas 9V Cuadrada Recargable",null,48,"Unidad",14095.4,676579.2,null,null,"Pilas 9V Cuadrada Recargable",null,58,"Unidad",14095.4,817533.2]
["Modificación de artículo o servicio",118,"Pilas Aa Recargables Par",null,90,"Dos pilas",11251.2,1012608,null,null,"Pilas Aa Recargables Par",null,100,"Dos pilas",11251.2,1125120]
["Modificación de artículo o servicio",119,"Pilas Aaa Recargables Par",null,90,"Dos pilas",7343.6,660924,null,null,"Pilas Aaa Recargables Par",null,95,"Dos pilas",7343.6,697642]
["Modificación de artículo o servicio",120,"Pilas Alcalina Cuadrada De 9V No Recargable",null,72,"Dos pilas",4180.7,301010.40000000002,null,null,"Pilas Alcalina Cuadrada De 9V No Recargable",null,92,"Dos pilas",4180.7,384624.4]
["Modificación de artículo o servicio",121,"Pilas Alcalinas Aa No Recargables Par",null,240,"Dos pilas",1684,404160,null,null,"Pilas Alcalinas Aa No Recargables Par",null,260,"Dos pilas",1684,437840]
["Modificación de artículo o servicio",122,"Pilas Alcalinas Aaa No Recargables",null,240,"Dos pilas",1816.1,435864,null,null,"Pilas Alcalinas Aaa No Recargables",null,270,"Dos pilas",1816.1,490347]
["Modificación de artículo o servicio",123,"Pinceles Cerdas Suaves Juego X 6 Unidades",null,30,"6 unidades",2984.9,89547,null,null,"Pinceles Cerdas Suaves Juego X 6 Unidades",null,42,"6 unidades",2984.9,125365.8]
["Modificación de artículo o servicio",124,"Plastifolder Carta Con Bisel",null,12,"Unidad",112.5,1350,null,null,"Plastifolder Carta Con Bisel",null,21,"Unidad",112.5,2362.5]
["Modificación de artículo o servicio",125,"Plastifolder Carta Con Gancho Legajador",null,12,"Unidad",873.5,10482,null,null,"Plastifolder Carta Con Gancho Legajador",null,24,"Unidad",873.5,20964]
["Modificación de artículo o servicio",126,"Plastifolder Oficio Con Bisel",null,12,"Unidad",162.9,1954.8,null,null,"Plastifolder Oficio Con Bisel",null,84,"Unidad",162.9,13683.6]
["Modificación de artículo o servicio",127,"Plastifolder Oficio Con Gancho Legajador",null,72,"Unidad",915.2,65894.399999999994,null,null,"Plastifolder Oficio Con Gancho Legajador",null,82,"Unidad",915.2,75046.399999999994]
["Modificación de artículo o servicio",128,"Pliego Foamy",null,240,"Unidad",2302.9,552696,null,null,"Pliego Foamy",null,270,"Unidad",2302.9,621783]
["Modificación de artículo o servicio",129,"Plumones Caja X 12",null,30,"Caja x 12",864.9,{"$f":"ROUND(E168*G168, 2)","v":25947},null,null,{"$f":"C168","v":"Plumones Caja X 12"},null,42,"Caja x 12",864.9,{"$f":"ROUND(M168*O168, 2)","v":36325.800000000003}]
["Modificación de artículo o servicio",130,"Portalápiz",null,48,"Unidad",5682.6,272764.79999999999,null,null,"Portalápiz",null,60,"Unidad",5682.6,340956]
["Modificación de artículo o servicio",131,"Portaminas 0,5Mm",null,12,"Unidad",404.8,4857.6000000000004,null,null,"Portaminas 0,5Mm",null,24,"Unidad",404.8,9715.2000000000007]
["Modificación de artículo o servicio",132,"Portaminas 0,7Mm",null,12,"Unidad",364.9,4378.8,null,null,"Portaminas 0,7Mm",null,27,"Unidad",364.9,9852.2999999999993]
["Modificación de artículo o servicio",133,"Portaminas 2 Mm",null,12,"Unidad",2232.4,26788.799999999999,null,null,"Portaminas 2 Mm",null,32,"Unidad",2232.4,71436.800000000003]
["Modificación de artículo o servicio",134,"Regla Plastica",null,180,"Unidad",620.54999999999995,111699,null,null,"Regla Plastica",null,195,"Unidad",620.54999999999995,121007.25]
["Modificación de artículo o servicio",135,"Regla Metálica Grande",null,120,"Unidad",2518.65,302238,null,null,"Regla Metálica Grande",null,600,"Unidad",2518.65,1511190]
["Modificación de artículo o servicio",136,"Regla Metálica",null,15,"Unidad",89.7,1345.5,null,null,"Regla Metálica",null,495,"Unidad",89.7,44401.5]
["Modificación de artículo o servicio",137,"Repuesto Bisturí 18Mm Paquete X 10 ",null,30,"Paquete x 10",508.5,15255,null,null,"Repuesto Bisturí 18Mm Paquete X 10 ",null,40,"Paquete x 10",508.5,20340]
["Modificación de artículo o servicio",138,"Repuesto Bisturí 9Mm Paquete X 10 ",null,30,"Paquete x 10",253.1,7593,null,null,"Repuesto Bisturí 9Mm Paquete X 10 ",null,40,"Paquete x 10",253.1,10124]
["Modificación de artículo o servicio",139,"Resaltador Desechable",null,480,"Unidad",252,120960,null,null,"Resaltador Desechable",null,600,"Unidad",252,151200]
["Modificación de artículo o servicio",140,"Rollo Papel Químico 76Mm ",null,480,"Unidad",1535,736800,null,null,"Rollo Papel Químico 76Mm ",null,660,"Unidad",1535,1013100]
["Modificación de artículo o servicio",141,"Rollo Sumadora 57Mm",null,30,"Unidad",413.2,12396,null,null,"Rollo Sumadora 57Mm",null,210,"Unidad",413.2,86772]
["Modificación de artículo o servicio",142,"Rollo Sumadora 70Mm",null,30,"Unidad",546.6,16398,null,null,"Rollo Sumadora 70Mm",null,210,"Unidad",546.6,114786]
["Modificación de artículo o servicio",143,"Rotulo Adhesivo Matriz  X 480 Rótulos",null,120,"480 rótulos",15004.2,1800504,null,null,"Rotulo Adhesivo Matriz  X 480 Rótulos",null,300,"480 rótulos",15004.2,4501260]
["Modificación de artículo o servicio",144,"Rotulo Adhesivo Matriz X 1080 Rótulos",null,180,"1080 rótulos",13239,2383020,null,null,"Rotulo Adhesivo Matriz X 1080 Rótulos",null,420,"1080 rótulos",13239,5560380]
["Modificación de artículo o servicio",145,"Rotulo Adhesivo Para Cd/Dvd 116 Mm Sobre De 30 Hojas",null,180,"30 hojas",10505.95,1891071,null,null,"Rotulo Adhesivo Para Cd/Dvd 116 Mm Sobre De 30 Hojas",null,420,"30 hojas",10505.95,4412499]
["Modificación de artículo o servicio",146,"Rotulo Adhesivo Para Cd/Dvd 118 Mm Sobre De 30 Hojas",null,180,"30 hojas",10505.95,1891071,null,null,"Rotulo Adhesivo Para Cd/Dvd 118 Mm Sobre De 30 Hojas",null,300,"30 hojas",10505.95,3151785]
["Modificación de artículo o servicio",147,"Rotulo Adhesivo Por Hoja, Sobre De 30 Hojas",null,180,"30 hojas",14121.6,2541888,null,null,"Rotulo Adhesivo Por Hoja, Sobre De 30 Hojas",null,280,"30 hojas",14121.6,3954048]
["Modificación de artículo o servicio",148,"Sacaganchos Para Grapa",null,240,"Unidad",507.1,121704,null,null,"Sacaganchos Para Grapa",null,260,"Unidad",507.1,131846]
["Modificación de artículo o servicio",149,"Separador Plástico Carta Paquete X 5 ",null,240,"Paquete x 5",169.9,40776,null,null,"Separador Plástico Carta Paquete X 5 ",null,260,"Paquete x 5",169.9,44174]
["Modificación de artículo o servicio",150,"Silicona Liquida",null,120,"Unidad",1276.0999999999999,153132,null,null,"Silicona Liquida",null,140,"Unidad",1276.0999999999999,178654]
["Modificación de artículo o servicio",151,"Sobre De Manila Carta Paquete X 100",null,180,"100 Unidades",6427.8,1157004,null,null,"Sobre De Manila Carta Paquete X 100",null,200,"100 Unidades",6427.8,1285560]
["Modificación de artículo o servicio",152,"Sobre De Manila Extra Oficio Paquete X 50",null,150,"50 Unidades",4939,740850,null,null,"Sobre De Manila Extra Oficio Paquete X 50",null,250,"50 Unidades",4939,1234750]
["Modificación de artículo o servicio",153,"Sobre De Manila Medio Oficio Paquete X 100",null,270,"100 Unidades",4629.1000000000004,1249857,null,null,"Sobre De Manila Medio Oficio Paquete X 100",null,370,"100 Unidades",4629.1000000000004,1712767]
["Modificación de artículo o servicio",154,"Sobre De Manila Oficio Paquete X 100",null,300,"100 Unidades",6289.15,1886745,null,null,"Sobre De Manila Oficio Paquete X 100",null,310,"100 Unidades",6289.15,1949636.5]
["Modificación de artículo o servicio",155,"Sobre De Manila Radiólogo Paquete X 100",null,180,"100 Unidades",5657.25,1018305,null,null,"Sobre De Manila Radiólogo Paquete X 100",null,195,"100 Unidades",5657.25,1103163.75]
["Modificación de artículo o servicio",156,"Sobre Para Archivo Carta",null,3000,"Unidad",76.599999999999994,229800,null,null,"Sobre Para Archivo Carta",null,3060,"Unidad",76.599999999999994,234396]
["Modificación de artículo o servicio",157,"Sobre Para Archivo Oficio",null,3600,"Unidad",108.7,391320,null,null,"Sobre Para Archivo Oficio",null,3703,"Unidad",108.7,402516.1]
["Modificación de artículo o servicio",158,"Sobrecubiertas Laterales",null,1500,"Unidad",1075.05,1612575,null,null,"Sobrecubiertas Laterales",null,1900,"Unidad",1075.05,2042595]
["Modificación de artículo o servicio",159,"Sobrecubiertas Laterales Membreteadas. La Entidad Compradora Debe Solicitar Mínimo 500 Unidades. ",null,1500,"Unidad",1075.05,1612575,null,null,"Sobrecubiertas Laterales Membreteadas. La Entidad Compradora Debe Solicitar Mínimo 500 Unidades. ",null,1680,"Unidad",1075.05,1806084]
["Modificación de artículo o servicio",160,"Tabla Planillera",null,120,"Unidad",1967.9,236148,null,null,"Tabla Planillera",null,240,"Unidad",1967.9,472296]
["Modificación de artículo o servicio",161,"Tablero En Acrílico ",null,15,"Unidad",52960,{"$f":"ROUND(E200*G200, 2)","v":794400},null,null,{"$f":"C200","v":"Tablero En Acrílico "},null,135,"Unidad",52960,{"$f":"ROUND(M200*O200, 2)","v":7149600}]
["Modificación de artículo o servicio",162,"Taco De Papel ",null,60,"Unidad",631,37860,null,null,"Taco De Papel ",null,181,"Unidad",631,114211]
["Modificación de artículo o servicio",163,"Tajalápiz",null,240,"Unidad",123.6,29664,null,null,"Tajalápiz",null,360,"Unidad",123.6,44496]
["Modificación de artículo o servicio",164,"Tarjeta Pvc Calibre 30 Para Carnet Institucional Paquete X 100",null,540,"Paquete x 100",14031,7576740,null,null,"Tarjeta Pvc Calibre 30 Para Carnet Institucional Paquete X 100",null,660,"Paquete x 100",14031,9260460]
["Modificación de artículo o servicio",165,"Tijera De Acero Inoxidable",null,180,"Unidad",1632.8,293904,null,null,"Tijera De Acero Inoxidable",null,300,"Unidad",1632.8,489840]
["Modificación de artículo o servicio",166,"Tinta Marcador Borrable Recargable",null,120,"Unidad",326.5,39180,null,null,"Tinta Marcador Borrable Recargable",null,122,"Unidad",326.5,39833]
["Modificación de artículo o servicio",167,"Tinta Para Sello 28 A 30 Cc Negro",null,120,"Unidad",675.7,81084,null,null,"Tinta Para Sello 28 A 30 Cc Negro",null,190,"Unidad",675.7,128383]
["Modificación de artículo o servicio",168,"Tinta Para Sello Para Documento Histórico Y Archivístico 28 A 30 C.C. Azul",null,120,"Unidad",791.2,94944,null,null,"Tinta Para Sello Para Documento Histórico Y Archivístico 28 A 30 C.C. Azul",null,191,"Unidad",791.2,151119.20000000001]
["Modificación de artículo o servicio",169,"Tinta Para Sello Para Documento Histórico Y Archivístico X 28 A 30 C.C. Negro",null,120,"Unidad",791.2,94944,null,null,"Tinta Para Sello Para Documento Histórico Y Archivístico X 28 A 30 C.C. Negro",null,190,"Unidad",791.2,150328]
["Modificación de artículo o servicio",170,"Tinta Para Sello Para Documento Histórico Y Archivístico X 500 C.C. Azul",null,120,"Unidad",5628.5,675420,null,null,"Tinta Para Sello Para Documento Histórico Y Archivístico X 500 C.C. Azul",null,195,"Unidad",5628.5,1097557.5]
["Modificación de artículo o servicio",171,"Tinta Para Sello Para Documento Histórico Y Archivístico X 500 C.C. Negro",null,120,"Unidad",5625.5,675060,null,null,"Tinta Para Sello Para Documento Histórico Y Archivístico X 500 C.C. Negro",null,240,"Unidad",5625.5,1350120]
["Modificación de artículo o servicio",172,"Tinta Para Sello X Galón Negro",null,30,"Unidad",42389.5,1271685,null,null,"Tinta Para Sello X Galón Negro",null,60,"Unidad",42389.5,2543370]
[]
[null,null,null,null,null,null,"Cantidad de celdas a agregar:",null,1]
[]
[]
["Sección 5: Resultados de la modificación"]
[]
["Número de la línea según O.C.","Nombre del artículo",null,null,null,"Valores actuales",null,null,"Nuevos valores"]
[null,"Valor de la línea IVA en la Orden de Compra:",null,null,null,{"$f":"ROUND(M219, 2)","v":0},null,null,null,null,null,null,0]
[null,"Valor de la línea AIU en la Orden de Compra:"]
[null,"Valor de la línea gravámenes adicionales en la Orden de Compra:"]
[]
[]
[]
[]
[null,"Firma ordenador del gasto",null,null,null,null,"Firma de Proveedor",null,null,null,null,"Fecha de elaboración"]
[]
["Nombre:",null,null,null,null,"Nombre:",null,null,null,null,"Las partes manifestamos que este mismo documento se cargará en la plataforma en formato Excel (.xlsm) y los cambios se pueden validar con el mismo."]
["Documento de Identidad:",null,null,null,"Documento de Identidad:"]

{"sheet":"Instructivo de Diligenciamiento","index":1,"n_rows":4,"n_cols":2,"rows_kept":4,"cut":false,"hidden":false,"merged":[[3,1,82,10]]}
[]
[]
[]
[null,"Instrucciones de diligenciamiento:\n\nColombia Compra Eficiente ha diseñado este formato para que las Entidades Compradoras puedan realizar aclaraciones, modificaciones, cancelaciones o terminaciones y liquidaciones de las Órdenes de Compra que estén en ejecución y vigentes, o ejecutadas. Para ello debe indicar:\n\nDatos generales: Datos básicos como número de la Orden de Compra que requiere cambiar, número consecutivo de solicitud tenga en cuenta que la primera solicitud corresponderá a la número “1”, nombre de la Entidad Compradora, nombre de la persona que solicita las acciones, celular o número de teléfono y extensión, NIT de la Entidad Compradora y el nombre del Proveedor que ejecuta la Orden de Compra.\n\nSección 1. Tipo de acción: Las Entidades pueden solicitar cuatro tipos de acciones respecto de las Órdenes de Compra:\n\n(i) Aclaraciones: Son las indicaciones de cambio de información que no afectan el plazo, el valor o las condiciones contractuales de las Órdenes de Compra como: redacción en las condiciones de entrega, errores de digitación  o rectificación de la fecha de vencimiento. Estas aclaraciones no requieren de la aceptación del Proveedor. Sin embargo una vez realizada la aclaración en la Orden de Compra, la Entidad Compradora debe notificarle al Proveedor el cambio. \n\n(ii) Modificaciones: Son indicaciones de cambio en aumento o disminución de valor o plazo,  aumento o disminución de los bienes o servicios solicitados, cambios en las condiciones de ejecución o datos que afecten la ejecución de la Orden de Compra. Solo en los casos de cambio de supervisor y datos de notificación como dirección o teléfono se puede omitir la firma del Proveedor. Sin embargo una vez realizada la modificación, la Entidad Compradora debe notificarle al Proveedor el cambio.\n\n(iii) Cancelación: Es la manifestación de la Entidad de no iniciar la ejecución de la Orden de Compra la cual también debe ser aceptada por el Proveedor.\n\n(iv) Terminación y Liquidación: Este tipo de acción es mediante la cual una Entidad Compradora formaliza la terminación y liquidación de las obligaciones derivadas de la Orden de Compra y así establece las acreencias pendientes a favor o en contra de cada parte de la Orden de Compra, también sirve para aclarar la ejecución de la misma o realizar la terminación anticipada en caso de que las partes así lo deseen. Este tipo de acción se debe aplicar dentro de los términos establecidos en cada Acuerdo Marco de Precios, para lo cual se requiere la solicitud por parte de la Entidad Compradora firmada por el Ordenador del Gasto y el representante legal del Proveedor, así como el informe del supervisor de la Orden de Compra. \n\nSección 2.  Justificación: Las razones de la realización del cambio de la Orden de Compra.\n\nSección 3. Modificación información general: la idea en esta sección es indicar cuales son los datos de información general de la orden de compra que requiere cambiar\n\nSección 4. Modificación de artículos o servicios: esta sección unicamente aplica en caso de que la acción a realizar sea modificar o terminar y liquidar la orden de compra, allí deberá indicar el tipo de midificación que desea realizar e ingresar o modificar los articulos que desea ajustar. Al momento de diligenciar esta sección tenga en cuenta las siguientes recomendaciones:\n\n(i) Las correcciones en el plazo de ejecución son diferentes a las modificaciones en el plazo, ejemplo: la Entidad Compradora adquirió elementos con tres entregas parciales pero digitó como fecha final de la Orden de Compra la fecha de la primera entrega, para corregir esto la Entidad Compradora selecciona en tipo de acción: aclaración y en el campo de fecha de vencimiento indica la fecha correcta. En el caso que fuera cambio de fecha fin, ejemplo: prorrogar o disminuir varios meses la ejecución de la Orden de Compra se utiliza en tipo de acción: modificación.\n\n(ii) para la realización de las modificaciones tenga en cuenta las secciones de modificación de cada una de las guías de compra\n\n(iii) los valores y cantidades solo pueden tener hasta dos decimales.\n\n(iv) la decisión de modificar, adicionar o combinar las dos opciones dependerá de las necesidades de cada Entidad Compradora, ejemplo si es un servicio y adicionalmente solo requiere modificar “cantidad” se recomienda seleccionar “modificación de artículo”, cuando son bienes puede modificar cualquiera de los demás campos.\n\n(v) si requiere cambio de condiciones de un servicio ya ejecutado se recomienda modificar la línea para que se refleje la parte ejecutada y adicionar una nueva línea para las nuevas condiciones del servicio que va a ejecutar.\n\nSección 5. Resultados de la modificación: La entidad siempre debe indicar en el recuadro el valor total del IVA, AIU, gravámenes adicionales, estos campos serán los valores finales que quedarán en la Orden de Compra después de la modificación, tenga en cuenta que el campo de IVA no aplica para algunos AMP como: papelería, vehículos y SOAT y que el campo de AIU solo aplica para aseo y cafetería.\n\nFirmas del documento: El ordenador del gasto de la Entidad Compradora debe firmar el documento y enviarlo al Proveedor para que lo acepte y firme, en caso de que así se requiera. El documento firmado debe ser enviado a través del aplicativo dispuesto por   Colombia Compra Eficiente para realizar las acciones solicitadas.\n\nFecha de elaboración del documento: Corresponde a la fecha en la que la Entidad Compradora y el Proveedor llegaron a un acuerdo para realizar las acciones y se suscribe el documento, recuerde que: (i) para poder realizar modificaciones en las Órdenes de Compra las mismas se deben acordar dentro de la vigencia de la Orden de Compra, (ii) Las órdenes de compra no se podrán modificar si ya se encuentran vencidas, (iii) Se da por realizada la modificación o acción que requiera realizar la Entidad, desde le momento en que las partes la firmen. Colombia Compra Eficiente lo único que realiza en la Tienda Virtual es el proceso de publicación de la modificación o ajuste que las partes hayan acordado a través de la firma de este documento. \n\nSi la Entidad Compradora requiere agregar archivos que estén relacionados con las acciones a realizar como: copia del CDP y/o aprobación de Vigencia Futura (VF) que soporta la adición, soportes documentales, correos, cartas, etc... debe publicarlos junto con el documento de modificación suscrito en un único archivo .Pdf con alta resolución de escaneo, si el documento no es legible se tomaran los cambios contenidos en el formato Excel, tenga en cuenta que Colombia Compra Eficiente únicamente publicará las modificaciones especificadas en el formato enviado por el aplicativo.\n\n"]

{"sheet":"Listas","index":2,"n_rows":5,"n_cols":3,"rows_kept":5,"cut":false,"hidden":true,"merged":[]}
["TipoDeModificacion",null,"Modificacion"]
["Modificación de la Orden de Compra",null,"Modificación de artículo o servicio"]
["Aclaración a la Orden de Compra",null,"Agregar nuevo artículo o servicio"]
["Cancelación de la Orden de Compra",null,"Eliminar artículo o servicio"]
["Terminación y Liquidación de la Orden de Compra",null,"Ninguna"]